lending/lending_fUSD_20250719
["ID","MTS","AMOUNT","RATE_DAILY","PERIOD"]
[373337014,1752952246049,-480.0,0.00019178,2]
[373337015,1752952246059,-480.0,0.00019178,2]
[373337016,1752952246069,-480.0,0.00019178,2]
[373337017,1752952246079,-480.0,0.00019178,2]
[373337018,1752952246088,-480.0,0.00019178,2]
[373337019,1752952246098,-480.0,0.00019178,2]
[373337020,1752952246107,-480.0,0.00019178,2]
[373337021,1752952246117,-480.0,0.00019178,2]
[373337022,1752952246126,-480.0,0.00019178,2]
[373337023,1752952246137,-460.0,0.00019178,2]
[373337024,1752952246146,-481.91,0.00019178,2]
[373337025,1752952246156,-480.0,0.00019178,2]
[373337026,1752952246165,-460.0,0.00019178,2]
[373337027,1752952246175,-480.0,0.00019178,2]
[373337028,1752952246184,-650.22,0.00019178,2]
[373337029,1752952246194,-500.0,0.00019178,2]
[373337030,1752952246203,-480.0,0.00019178,2]
[373337031,1752952246213,-460.0,0.00019178,2]
[373337032,1752952246222,-480.0,0.00019178,2]
[373337033,1752952246232,-480.0,0.00019178,2]
[373337034,1752952246241,-480.0,0.00019178,2]
[373337035,1752952246251,-480.0,0.00019178,2]
[373337036,1752952246260,-480.0,0.00019178,2]
[373337037,1752952246271,-480.0,0.00019178,2]
[373337038,1752952246490,-480.0,0.00019178,2]
[373337039,1752952246500,-480.0,0.00019178,2]
[373337040,1752952246511,-568.8113692,0.00019178,2]
[373337041,1752952246521,-480.0,0.00019178,2]
[373337042,1752952246531,-480.0,0.00019178,2]
[373337043,1752952246541,-480.0,0.00019178,2]
[373337044,1752952246552,-480.0,0.00019178,2]
[373337045,1752952246561,-480.0,0.00019178,2]
[373337046,1752952246571,-480.0,0.00019178,2]
[373337047,1752952246580,-466.44783436,0.00019178,2]
[373337048,1752952246590,-460.0,0.00019178,2]
[373337049,1752952246600,-480.0,0.00019178,2]
[373337050,1752952246609,-460.0,0.00019178,2]
[373337051,1752952246619,-480.0,0.00019178,2]
[373337052,1752952246629,-480.0,0.00019178,2]
[373337053,1752952246638,-480.0,0.00019178,2]
[373337054,1752952246648,-480.0,0.00019178,2]
[373337055,1752952246658,-480.0,0.00019178,2]
[373337056,1752952246670,-480.0,0.00019178,2]
[373337057,1752952246680,-480.0,0.00019178,2]
[373337058,1752952246689,-550.46,0.00019178,2]
[373337059,1752952246699,-480.0,0.00019178,2]
[373337060,1752952246708,-460.0,0.00019178,2]
[373337061,1752952246718,-480.0,0.00019178,2]
[373337062,1752952246728,-480.0,0.00019178,2]
[373337063,1752952246737,-460.0,0.00019178,2]
[373337064,1752952246747,-460.0,0.00019178,2]
[373337065,1752952246757,-520.93,0.00019178,2]
[373337066,1752952246767,-493.62,0.00019178,2]
[373337067,1752952246777,-545.96,0.00019178,2]
[373337068,1752952246787,-480.0,0.00019178,2]
[373337069,1752952246797,-460.0,0.00019178,2]
[373337070,1752952246807,-480.0,0.00019178,2]
[373337071,1752952246816,-480.0,0.00019178,2]
[373337072,1752952246826,-480.0,0.00019178,2]
[373337073,1752952246836,-480.0,0.00019178,2]
[373337074,1752952246846,-480.0,0.00019178,2]
[373337075,1752952246857,-480.0,0.00019178,2]
[373337076,1752952246867,-480.0,0.00019178,2]
[373337077,1752952246877,-480.0,0.00019178,2]
[373337078,1752952246887,-480.0,0.00019178,2]
[373337079,1752952246896,-480.0,0.00019178,2]
[373337080,1752952246906,-480.0,0.00019178,2]
[373337081,1752952246916,-480.0,0.00019178,2]
[373337082,1752952246926,-644.18,0.00019178,2]
[373337083,1752952246936,-650.11,0.00019178,2]
[373337084,1752952246946,-480.0,0.00019178,2]
[373337085,1752952246955,-480.0,0.00019178,2]
[373337086,1752952246965,-480.0,0.00019178,2]
[373337087,1752952246975,-530.40420199,0.00019178,2]
[373337088,1752952246984,-480.0,0.00019178,2]
[373337089,1752952246994,-480.0,0.00019178,2]
[373337090,1752952247003,-1096.79,0.00019178,2]
[373337091,1752952247013,-480.0,0.00019178,2]
[373337092,1752952247023,-480.0,0.00019178,2]
[373337093,1752952247032,-654.13,0.00019178,2]
[373337094,1752952247042,-480.0,0.00019178,2]
[373337095,1752952247052,-480.0,0.00019178,2]
[373337096,1752952247063,-460.0,0.00019178,2]
[373337097,1752952247072,-361.98874237,0.00019178,2]
[373337098,1752952247082,-480.0,0.00019178,2]
[373337099,1752952247091,-480.0,0.00019178,2]
[373337100,1752952247101,-480.0,0.00019178,2]
[373337101,1752952247110,-480.0,0.00019178,2]
[373337102,1752952247120,-1007.16,0.00019178,2]
[373337103,1752952247129,-480.0,0.00019178,2]
[373337104,1752952247139,-1153.735624,0.00019178,2]
[373337105,1752952247149,-480.0,0.00019178,2]
[373337106,1752952247158,-1129.14,0.00019178,2]
[373337107,1752952247168,-2800.24,0.00019178,2]
[373337108,1752952247178,-610.18,0.00019178,2]
[373337109,1752952247187,-480.0,0.00019178,2]
[373337110,1752952247197,-480.0,0.00019178,2]
[373337111,1752952247206,-1410.32,0.00019178,2]
[373337112,1752952247216,-480.0,0.00019178,2]
[373337113,1752952247225,-1114.793761,0.00019178,2]
[373337114,1752952247235,-480.0,0.00019178,2]
[373337115,1752952247245,-1137.260388,0.00019178,2]
[373337116,1752952247255,-480.0,0.00019178,2]
[373337117,1752952247265,-591.19,0.00019178,2]
[373337118,1752952247275,-4550.08,0.00019178,2]
[373337119,1752952247285,-480.0,0.00019178,2]
[373337120,1752952247294,-1598.66,0.00019178,2]
[373337121,1752952247303,-480.0,0.00019178,2]
[373337122,1752952247313,-480.0,0.00019178,2]
[373337123,1752952247323,-1244.44,0.00019178,2]
[373337124,1752952247333,-2999.91,0.00019178,2]
[373337125,1752952247342,-480.0,0.00019178,2]
[373337126,1752952247352,-798.69,0.00019178,2]
[373337127,1752952247361,-480.0,0.00019178,2]
[373337128,1752952247371,-460.0,0.00019178,2]
[373337129,1752952247381,-1228.95,0.00019178,2]
[373337130,1752952247390,-1219.01,0.00019178,2]
[373337131,1752952247402,-480.0,0.00019178,2]
[373337132,1752952247412,-1095.8,0.00019178,2]
[373337133,1752952247421,-480.0,0.00019178,2]
[373337134,1752952247431,-480.0,0.00019178,2]
[373337135,1752952247441,-1004.92,0.00019178,2]
[373337136,1752952247451,-1275.12,0.00019178,2]
[373337137,1752952247460,-480.0,0.00019178,2]
[373337138,1752952247470,-2173.06,0.00019178,2]
[373337139,1752952247479,-987.93,0.00019178,2]
[373337140,1752952247489,-340.0,0.00019178,2]
[373337141,1752952247499,-480.0,0.00019178,2]
[373337142,1752952247509,-1591.7,0.00019178,2]
[373337143,1752952247519,-480.0,0.00019178,2]
[373337144,1752952247528,-480.0,0.00019178,2]
[373337145,1752952247538,-480.0,0.00019178,2]
[373337146,1752952247548,-726.58,0.00019178,2]
[373337147,1752952247557,-480.0,0.00019178,2]
[373337148,1752952247567,-1348.44,0.00019178,2]
[373337149,1752952247576,-489.82,0.00019178,2]
[373337150,1752952247586,-894.04,0.00019178,2]
[373337151,1752952247595,-480.0,0.00019178,2]
[373337152,1752952247605,-255.74106635,0.00019178,2]
[373337153,1752952247615,-589.08,0.00019178,2]
[373337154,1752952247624,-1307.66,0.00019178,2]
[373337155,1752952247634,-480.0,0.00019178,2]
[373337156,1752952247644,-480.0,0.00019178,2]
[373337157,1752952247654,-480.0,0.00019178,2]
[373337158,1752952247663,-460.0,0.00019178,2]
[373337159,1752952247673,-1531.13,0.00019178,2]
[373337160,1752952247683,-475.81312293,0.00019178,2]
[373337161,1752952247692,-480.0,0.00019178,2]
[373337162,1752952247702,-851.9,0.00019178,2]
[373337163,1752952247712,-480.0,0.00019178,2]
[373337164,1752952247721,-460.0,0.00019178,2]
[373337165,1752952247731,-587.59,0.00019178,2]
[373337166,1752952247740,-305.83083654,0.00019178,2]
[373337167,1752952247750,-480.0,0.00019178,2]
[373337168,1752952247759,-1422.54,0.00019178,2]
[373337169,1752952247771,-500.0,0.00019178,2]
[373337170,1752952247781,-1580.83,0.00019178,2]
[373337171,1752952247790,-480.0,0.00019178,2]
[373337172,1752952247799,-480.0,0.00019178,2]
[373337173,1752952247809,-588.33,0.00019178,2]
[373337174,1752952247818,-682.23,0.00019178,2]
[373337175,1752952247827,-480.0,0.00019178,2]
[373337176,1752952247837,-460.0,0.00019178,2]
[373337177,1752952247847,-480.0,0.00019178,2]
[373337178,1752952247858,-480.0,0.00019178,2]
[373337179,1752952247867,-480.0,0.00019178,2]
[373337180,1752952247877,-639.79,0.00019178,2]
[373337181,1752952247886,-2038.17,0.00019178,2]
[373337182,1752952247896,-480.0,0.00019178,2]
[373337183,1752952247906,-480.0,0.00019178,2]
[373337184,1752952247916,-480.0,0.00019178,2]
[373337185,1752952247925,-2644.73,0.00019178,2]
[373337186,1752952247935,-1159.61,0.00019178,2]
[373337187,1752952247945,-480.0,0.00019178,2]
[373337188,1752952247954,-873.36,0.00019178,2]
[373337189,1752952247964,-632.76,0.00019178,2]
[373337190,1752952247974,-1769.3,0.00019178,2]
[373337191,1752952247983,-1113.19,0.00019178,2]
[373337192,1752952247993,-2355.97,0.00019178,2]
[373337193,1752952248003,-320.0,0.00019178,2]
[373337194,1752952248013,-532.95,0.00019178,2]
[373337195,1752952248024,-867.91,0.00019178,2]
[373337196,1752952248034,-2135.73,0.00019178,2]
[373337197,1752952248044,-480.0,0.00019178,2]
[373337198,1752952248054,-480.0,0.00019178,2]
[373337199,1752952248064,-480.0,0.00019178,2]
[373337200,1752952248075,-480.0,0.00019178,2]
[373337201,1752952248084,-480.0,0.00019178,2]
[373337202,1752952248094,-1177.59,0.00019178,2]
[373337203,1752952248104,-480.0,0.00019178,2]
[373337204,1752952248113,-480.0,0.00019178,2]
[373337205,1752952248123,-1221.51,0.00019178,2]
[373337206,1752952248133,-918.92,0.00019178,2]
[373337207,1752952248143,-2289.35,0.00019178,2]
[373337208,1752952248153,-3701.2,0.00019178,2]
[373337209,1752952248163,-480.0,0.00019178,2]
[373337210,1752952248173,-2188.84,0.00019178,2]
[373337211,1752952248183,-480.0,0.00019178,2]
[373337212,1752952248192,-480.0,0.00019178,2]
[373337213,1752952248202,-460.0,0.00019178,2]
[373337214,1752952248211,-480.0,0.00019178,2]
[373337215,1752952248221,-835.84,0.00019178,2]
[373337216,1752952248231,-480.0,0.00019178,2]
[373337217,1752952248241,-721.04,0.00019178,2]
[373337218,1752952248250,-460.0,0.00019178,2]
[373337219,1752952248260,-1328.9,0.00019178,2]
[373337220,1752952248270,-480.0,0.00019178,2]
[373337221,1752952248279,-480.0,0.00019178,2]
[373337222,1752952248288,-480.0,0.00019178,2]
[373337223,1752952248298,-480.0,0.00019178,2]
[373337224,1752952248308,-527.43580197,0.00019178,2]
[373337225,1752952248318,-1868.74,0.00019178,2]
[373337226,1752952248327,-480.0,0.00019178,2]
[373337227,1752952248338,-3938.89,0.00019178,2]
[373337228,1752952248347,-480.0,0.00019178,2]
[373337229,1752952248357,-1907.17,0.00019178,2]
[373337230,1752952248367,-480.0,0.00019178,2]
[373337231,1752952248379,-480.0,0.00019178,2]
[373337232,1752952248389,-480.0,0.00019178,2]
[373337233,1752952248400,-480.0,0.00019178,2]
[373337234,1752952248409,-868.87,0.00019178,2]
[373337235,1752952248418,-480.0,0.00019178,2]
[373337236,1752952248430,-480.0,0.00019178,2]
[373337237,1752952248439,-604.55,0.00019178,2]
[373337238,1752952248449,-569.78440992,0.00019178,2]
[373337239,1752952248461,-1432.96,0.00019178,2]
[373337240,1752952248471,-480.0,0.00019178,2]
[373337241,1752952248480,-480.0,0.00019178,2]
[373337242,1752952248489,-500.0,0.00019178,2]
[373337243,1752952248499,-499.96,0.00019178,2]
[373337244,1752952248508,-460.0,0.00019178,2]
[373337245,1752952248517,-566.67,0.00019178,2]
[373337246,1752952248528,-480.0,0.00019178,2]
[373337247,1752952248538,-460.0,0.00019178,2]
[373337248,1752952248548,-480.0,0.00019178,2]
[373337249,1752952248558,-480.0,0.00019178,2]
[373337250,1752952248568,-1054.05,0.00019178,2]
[373337251,1752952248577,-830.32,0.00019178,2]
[373337252,1752952248587,-460.0,0.00019178,2]
[373337253,1752952248597,-480.0,0.00019178,2]
[373337254,1752952248607,-3857.45,0.00019178,2]
[373337255,1752952248617,-480.0,0.00019178,2]
[373337256,1752952248627,-501.66,0.00019178,2]
[373337257,1752952248637,-480.0,0.00019178,2]
[373337258,1752952248647,-1709.71,0.00019178,2]
[373337259,1752952248657,-480.0,0.00019178,2]
[373337260,1752952248667,-1156.69,0.00019178,2]
[373337261,1752952248678,-563.18,0.00019178,2]
[373337262,1752952248688,-460.0,0.00019178,2]
[373337263,1752952248698,-480.0,0.00019178,2]
[373337264,1752952248708,-480.0,0.00019178,2]
[373337265,1752952248717,-460.0,0.00019178,2]
[373337266,1752952248727,-460.0,0.00019178,2]
[373337267,1752952248737,-1001.97,0.00019178,2]
[373337268,1752952248747,-1992.27,0.00019178,2]
[373337269,1752952248757,-480.0,0.00019178,2]
[373337270,1752952248767,-745.32,0.00019178,2]
[373337271,1752952248777,-460.0,0.00019178,2]
[373337272,1752952248788,-996.23,0.00019178,2]
[373337273,1752952248797,-698.49,0.00019178,2]
[373337274,1752952248807,-693.29,0.00019178,2]
[373337275,1752952248817,-460.0,0.00019178,2]
[373337276,1752952248826,-728.37,0.00019178,2]
[373337277,1752952248836,-480.0,0.00019178,2]
[373337278,1752952248846,-170.835821,0.00019178,2]
[373337279,1752952248855,-1010.79,0.00019178,2]
[373337280,1752952248865,-480.0,0.00019178,2]
[373337281,1752952248944,-1340.16,0.00019178,2]
[373337282,1752952248954,-460.0,0.00019178,2]
[373337283,1752952248964,-480.0,0.00019178,2]
[373337284,1752952248975,-480.0,0.00019178,2]
[373337285,1752952248985,-480.0,0.00019178,2]
[373337286,1752952248996,-480.0,0.00019178,2]
[373337287,1752952249006,-480.0,0.00019178,2]
[373337288,1752952249015,-1059.46,0.00019178,2]
[373337289,1752952249027,-480.0,0.00019178,2]
[373337290,1752952249038,-162.326343,0.00019178,2]
[373337291,1752952249048,-160.638318,0.00019178,2]
[373337292,1752952249059,-1000.14,0.00019178,2]
[373337293,1752952249070,-1073.68,0.00019178,2]
[373337294,1752952249081,-1398.18,0.00019178,2]
[373337295,1752952249091,-480.0,0.00019178,2]
[373337296,1752952249102,-480.0,0.00019178,2]
[373337297,1752952249114,-1476.8,0.00019178,2]
[373337298,1752952249124,-480.0,0.00019178,2]
[373337299,1752952249135,-460.0,0.00019178,2]
[373337300,1752952249147,-480.0,0.00019178,2]
[373337301,1752952249157,-1190.32,0.00019178,2]
[373337302,1752952249167,-772.02,0.00019178,2]
[373337303,1752952249178,-480.0,0.00019178,2]
[373337304,1752952249189,-633.65,0.00019178,2]
[373337305,1752952249199,-1705.06,0.00019178,2]
[373337306,1752952249209,-460.0,0.00019178,2]
[373337307,1752952249220,-480.0,0.00019178,2]
[373337308,1752952249230,-480.0,0.00019178,2]
[373337309,1752952249240,-460.0,0.00019178,2]
[373337310,1752952249250,-480.0,0.00019178,2]
[373337311,1752952249260,-578.27,0.00019178,2]
[373337312,1752952249270,-480.0,0.00019178,2]
[373337313,1752952249279,-480.0,0.00019178,2]
[373337314,1752952249289,-535.01,0.00019178,2]
[373337315,1752952249299,-480.0,0.00019178,2]
[373337316,1752952249309,-988.69,0.00019178,2]
[373337317,1752952249319,-480.0,0.00019178,2]
[373337318,1752952249329,-2185.5,0.00019178,2]
[373337319,1752952249340,-480.0,0.00019178,2]
[373337320,1752952249350,-671.34,0.00019178,2]
[373337321,1752952249360,-1859.76,0.00019178,2]
[373337322,1752952249370,-480.0,0.00019178,2]
[373337323,1752952249381,-2311.75,0.00019178,2]
[373337324,1752952249390,-1135.56,0.00019178,2]
[373337325,1752952249401,-5476.24,0.00019178,2]
[373337326,1752952249412,-480.0,0.00019178,2]
[373337327,1752952249421,-480.0,0.00019178,2]
[373337328,1752952249431,-480.0,0.00019178,2]
[373337329,1752952249441,-480.0,0.00019178,2]
[373337330,1752952249451,-480.0,0.00019178,2]
[373337331,1752952249462,-610.35614296,0.00019178,2]
[373337332,1752952249472,-480.0,0.00019178,2]
[373337333,1752952249482,-1147.03,0.00019178,2]
[373337334,1752952249492,-480.0,0.00019178,2]
[373337335,1752952249502,-460.0,0.00019178,2]
[373337336,1752952249512,-558.56,0.00019178,2]
[373337337,1752952249522,-480.0,0.00019178,2]
[373337338,1752952249532,-2144.33,0.00019178,2]
[373337339,1752952249542,-625.57,0.00019178,2]
[373337340,1752952249552,-480.0,0.00019178,2]
[373337341,1752952249562,-2303.06,0.00019178,2]
[373337342,1752952249573,-480.0,0.00019178,2]
[373337343,1752952249582,-480.0,0.00019178,2]
[373337344,1752952249592,-480.0,0.00019178,2]
[373337345,1752952249602,-480.0,0.00019178,2]
[373337346,1752952249612,-480.0,0.00019178,2]
[373337347,1752952249621,-428.69,0.00019178,2]
[373337348,1752952249631,-480.0,0.00019178,2]
[373337349,1752952249640,-29418.52983363,0.00019178,2]
[373337350,1752952249650,-937.49516649,0.00019186,2]
[373337351,1752952249661,-785.0,0.00019198,2]
[373337352,1752952249670,-500.0,0.00019273,2]
[373337353,1752952249680,-500.0,0.00019273,2]
[373337354,1752952249689,-500.0,0.00019273,2]
[373337355,1752952249699,-454.55511236,0.00019273,2]
[373337356,1752952249709,-476.80070012,0.00019274,2]
[373337357,1752952249718,-210.82967408,0.00019274,2]
[373337358,1752952249727,-160.0,0.00019274,2]
[373337359,1752952249738,-839.16344753,0.00019274,2]
[373337360,1752952249748,-785.0,0.00019283,2]
[373337361,1752952249759,-480.0,0.00019284,2]
[373337362,1752952249768,-480.0,0.00019284,2]
[373337363,1752952249779,-480.0,0.00019284,2]
[373337364,1752952249789,-480.0,0.00019284,2]
[373337365,1752952249798,-480.0,0.00019284,2]
[373337366,1752952249808,-1099.82,0.00019284,2]
[373337367,1752952249818,-1199.88,0.00019284,2]
[373337368,1752952249828,-1065.87,0.00019284,2]
[373337369,1752952249838,-2205.45,0.00019284,2]
[373337370,1752952249848,-501.74,0.00019284,2]
[373337371,1752952249857,-532.69,0.00019284,2]
[373337372,1752952249867,-867.99,0.00019284,2]
[373337373,1752952249877,-10064.78,0.00019284,2]
[373337374,1752952249888,-2792.47,0.00019284,2]
[373337375,1752952249897,-5436.15,0.00019284,2]
[373337376,1752952249907,-1251.58,0.00019284,2]
[373337377,1752952249917,-1164.73,0.00019284,2]
[373337378,1752952249927,-820.97,0.00019284,2]
[373337379,1752952249936,-1001.26,0.00019284,2]
[373337380,1752952249946,-3390.33,0.00019284,2]
[373337381,1752952249956,-1148.31,0.00019284,2]
[373337382,1752952249966,-884.46,0.00019284,2]
[373337383,1752952249977,-872.99,0.00019284,2]
[373337384,1752952249988,-5038.08,0.00019284,2]
[373337385,1752952249998,-4537.68,0.00019284,2]
[373337386,1752952250009,-862.72,0.00019284,2]
[373337387,1752952250019,-1418.56,0.00019284,2]
[373337388,1752952250028,-488.96,0.00019284,2]
[373337389,1752952250039,-1045.2,0.00019284,2]
[373337390,1752952250049,-700.4,0.00019284,2]
[373337391,1752952250059,-3196.2,0.00019284,2]
[373337392,1752952250068,-1186.14,0.00019284,2]
[373337393,1752952250078,-3267.59,0.00019284,2]
[373337394,1752952250087,-460.0,0.00019284,2]
[373337395,1752952250097,-24091.4,0.00019284,2]
[373337396,1752952250107,-1000.0,0.00019284,2]
[373337397,1752952250116,-675.16,0.00019284,2]
[373337398,1752952250126,-1008.66,0.00019284,2]
[373337399,1752952250135,-1585.19,0.00019284,2]
[373337400,1752952250145,-690.11,0.00019284,2]
[373337401,1752952250155,-1410.5,0.00019284,2]
[373337402,1752952250165,-5367.49,0.00019284,2]
[373337403,1752952250175,-715.11,0.00019284,2]
[373337404,1752952250185,-773.14,0.00019284,2]
[373337405,1752952250194,-1674.47,0.00019284,2]
[373337406,1752952250203,-480.0,0.00019284,2]
[373337407,1752952250212,-500.0,0.00019285,2]
[373337408,1752952250222,-500.0,0.00019286,2]
[373337409,1752952250232,-247.20360064,0.00019286,2]
[373337410,1752952250242,-500.0,0.00019286,2]
[373337411,1752952250252,-1597.736,0.00019286,2]
[373337412,1752952250263,-500.0,0.00019286,2]
[373337413,1752952250272,-500.0,0.00019286,2]
[373337414,1752952250282,-500.0,0.00019286,2]
[373337415,1752952250291,-1705.06,0.00019286,2]
[373337416,1752952250302,-1705.06,0.00019286,2]
[373337417,1752952250312,-480.0,0.00019287,2]
[373337418,1752952250322,-554.98819572,0.00019287,2]
[373337419,1752952250331,-480.0,0.00019287,2]
[373337420,1752952250342,-480.0,0.00019287,2]
[373337421,1752952250352,-420.0,0.00019287,2]
[373337422,1752952250361,-480.0,0.00019287,2]
[373337423,1752952250371,-480.0,0.00019287,2]
[373337424,1752952250382,-480.0,0.00019287,2]
[373337425,1752952250392,-430.74042236,0.00019287,2]
[373337426,1752952250403,-480.0,0.00019287,2]
[373337427,1752952250412,-480.0,0.00019287,2]
[373337428,1752952250421,-480.0,0.00019287,2]
[373337429,1752952250430,-480.0,0.00019287,2]
[373337430,1752952250439,-341.22032293,0.00019287,2]
[373337431,1752952250448,-480.0,0.00019287,2]
[373337432,1752952250459,-360.0,0.00019287,2]
[373337433,1752952250470,-480.0,0.00019287,2]
[373337434,1752952250479,-480.0,0.00019287,2]
[373337435,1752952250489,-480.0,0.00019287,2]
[373337436,1752952250498,-480.0,0.00019287,2]
[373337437,1752952250508,-480.0,0.00019287,2]
[373337438,1752952250517,-480.0,0.00019287,2]
[373337439,1752952250528,-480.0,0.00019287,2]
[373337440,1752952250537,-320.0,0.00019287,2]
[373337441,1752952250548,-480.0,0.00019287,2]
[373337442,1752952250557,-480.0,0.00019287,2]
[373337443,1752952250567,-480.0,0.00019287,2]
[373337444,1752952250576,-480.0,0.00019287,2]
[373337445,1752952250586,-480.0,0.00019287,2]
[373337446,1752952250595,-480.0,0.00019287,2]
[373337447,1752952250604,-480.0,0.00019287,2]
[373337448,1752952250614,-480.0,0.00019287,2]
[373337449,1752952250625,-480.0,0.00019287,2]
[373337450,1752952250635,-480.0,0.00019287,2]
[373337451,1752952250644,-480.0,0.00019287,2]
[373337452,1752952250654,-480.0,0.00019287,2]
[373337453,1752952250664,-480.0,0.00019287,2]
[373337454,1752952250674,-480.0,0.00019287,2]
[373337455,1752952250685,-480.0,0.00019287,2]
[373337456,1752952250695,-480.0,0.00019287,2]
[373337457,1752952250708,-563.12,0.00019287,2]
[373337458,1752952250718,-480.0,0.00019287,2]
[373337459,1752952250727,-689.65,0.00019287,2]
[373337460,1752952250737,-480.0,0.00019287,2]
[373337461,1752952250746,-480.0,0.00019287,2]
[373337462,1752952250756,-480.0,0.00019287,2]
[373337463,1752952250765,-480.0,0.00019287,2]
[373337464,1752952250775,-480.0,0.00019287,2]
[373337465,1752952250784,-496.66,0.00019287,2]
[373337466,1752952250795,-480.0,0.00019287,2]
[373337467,1752952250804,-480.0,0.00019287,2]
[373337468,1752952250814,-480.0,0.00019287,2]
[373337469,1752952250823,-480.0,0.00019287,2]
[373337470,1752952250833,-514.35,0.00019287,2]
[373337471,1752952250843,-480.0,0.00019287,2]
[373337472,1752952250853,-480.0,0.00019287,2]
[373337473,1752952250863,-480.0,0.00019287,2]
[373337474,1752952250872,-480.0,0.00019287,2]
[373337475,1752952250882,-480.0,0.00019287,2]
[373337476,1752952250892,-598.05318865,0.00019287,2]
[373337477,1752952250902,-556.41,0.00019287,2]
[373337478,1752952250912,-480.0,0.00019287,2]
[373337479,1752952250921,-480.0,0.00019287,2]
[373337480,1752952250932,-480.0,0.00019287,2]
[373337481,1752952250942,-480.0,0.00019287,2]
[373337482,1752952250951,-480.0,0.00019287,2]
[373337483,1752952250961,-480.0,0.00019287,2]
[373337484,1752952250971,-460.0,0.00019287,2]
[373337485,1752952250981,-480.0,0.00019287,2]
[373337486,1752952250990,-480.0,0.00019287,2]
[373337487,1752952250999,-480.0,0.00019287,2]
[373337488,1752952251009,-480.0,0.00019287,2]
[373337489,1752952251018,-480.0,0.00019287,2]
[373337490,1752952251029,-480.0,0.00019287,2]
[373337491,1752952251038,-480.0,0.00019287,2]
[373337492,1752952251048,-480.0,0.00019287,2]
[373337493,1752952251058,-480.0,0.00019287,2]
[373337494,1752952251068,-480.0,0.00019287,2]
[373337495,1752952251078,-480.0,0.00019287,2]
[373337496,1752952251087,-480.0,0.00019287,2]
[373337497,1752952251096,-480.0,0.00019287,2]
[373337498,1752952251105,-480.0,0.00019287,2]
[373337499,1752952251114,-480.0,0.00019287,2]
[373337500,1752952251123,-480.0,0.00019287,2]
[373337501,1752952251133,-930.96582485,0.00019287,2]
[373337502,1752952251520,-21.28417515,0.00019287,2]
[373337503,1752952251531,-480.0,0.00019287,2]
[373337504,1752952251541,-670.33,0.00019287,2]
[373337505,1752952251551,-941.99,0.00019287,2]
[373337506,1752952251561,-480.0,0.00019287,2]
[373337507,1752952251570,-280.0,0.00019287,2]
[373337508,1752952251580,-480.0,0.00019287,2]
[373337509,1752952251590,-480.0,0.00019287,2]
[373337510,1752952251601,-480.0,0.00019287,2]
[373337511,1752952251611,-480.0,0.00019287,2]
[373337512,1752952251621,-480.0,0.00019287,2]
[373337513,1752952251631,-480.0,0.00019287,2]